fUSD/lending_fUSD_20260318
["ID","MTS","AMOUNT","RATE_DAILY","PERIOD"]
[408524946,1773823833059,-500.0,0.00015069,2]
[408524947,1773823833068,-500.0,0.00015069,2]
[408524948,1773823833078,-500.0,0.00015069,2]
[408524949,1773823833088,-500.0,0.00015069,2]
[408524950,1773823833098,-500.0,0.00015069,2]
[408524951,1773823833108,-500.0,0.00015069,2]
[408524952,1773823833118,-500.0,0.00015069,2]
[408524953,1773823833128,-500.0,0.00015069,2]
[408524954,1773823833137,-500.0,0.00015069,2]
[408524955,1773823833149,-500.0,0.00015069,2]
[408524956,1773823833158,-250.0,0.00015069,2]
[408524957,1773823833168,-250.0,0.00015069,2]
[408524958,1773823833177,-200.0,0.00015069,2]
[408524959,1773823833187,-250.0,0.00015069,2]
[408524960,1773823833197,-250.0,0.00015069,2]
[408524961,1773823833206,-250.0,0.00015069,2]
[408524962,1773823833216,-250.0,0.00015069,2]
[408524963,1773823833225,-151.0,0.00015069,2]
[408524964,1773823833236,-250.0,0.00015069,2]
[408524965,1773823833245,-174.61919141,0.00015069,2]
[408524966,1773823833255,-250.0,0.00015069,2]
[408524967,1773823833264,-151.0,0.00015069,2]
[408524968,1773823833283,-250.0,0.00015069,2]
[408524969,1773823833303,-151.0,0.00015069,2]
[408524970,1773823833323,-250.0,0.00015069,2]
[408524971,1773823833333,-197.81637649,0.00015069,2]
[408524972,1773823833343,-250.0,0.00015069,2]
[408524973,1773823833352,-250.0,0.00015069,2]
[408524974,1773823833361,-250.0,0.00015069,2]
[408524975,1773823833371,-250.0,0.00015069,2]
[408524976,1773823833380,-250.0,0.00015069,2]
[408524977,1773823833389,-250.0,0.00015069,2]
[408524978,1773823833398,-250.0,0.00015069,2]
[408524979,1773823833407,-500.0,0.00015069,2]
[408524980,1773823833416,-500.0,0.00015069,2]
[408524981,1773823833426,-500.0,0.00015069,2]
[408524982,1773823833439,-500.0,0.00015069,2]
[408524983,1773823833449,-500.0,0.00015069,2]
[408524984,1773823833459,-500.0,0.00015069,2]
[408524985,1773823833470,-500.0,0.00015069,2]
[408524986,1773823833482,-500.0,0.00015069,2]
[408524987,1773823833491,-500.0,0.00015069,2]
[408524988,1773823833500,-500.0,0.00015069,2]
[408524989,1773823833510,-500.0,0.00015069,2]
[408524990,1773823833521,-650.16366673,0.00015069,2]
[408524991,1773823833530,-500.0,0.00015069,2]
[408524992,1773823833539,-500.0,0.00015069,2]
[408524993,1773823833549,-500.0,0.00015069,2]
[408524994,1773823833560,-196.0,0.00015122,2]
[408524995,1773823833569,-500.0,0.00015124,2]
[408524996,1773823833579,-151.0,0.00015124,2]
[408524997,1773823833589,-500.0,0.00015179,2]
[408524998,1773823833599,-151.0,0.00015179,2]
[408524999,1773823833609,-500.0,0.00015234,2]
[408525000,1773823833619,-151.0,0.00015234,2]
[408525001,1773823833632,-196.0,0.00015271,2]
[408525002,1773823833642,-500.0,0.00015289,2]
[408525003,1773823833652,-151.0,0.00015289,2]
[408525004,1773823833661,-500.0,0.00015343,2]
[408525005,1773823833671,-500.0,0.00015344,2]
[408525006,1773823833681,-151.0,0.00015344,2]
[408525007,1773823833690,-166.66,0.00015374,2]
[408525008,1773823833700,-500.0,0.00015399,2]
[408525009,1773823833710,-151.0,0.00015399,2]
[408525010,1773823833720,-196.0,0.00015407,2]
[408525011,1773823833730,-2202.75,0.00015419,2]
[408525012,1773823833740,-500.0,0.00015454,2]
[408525013,1773823833750,-197.30699258,0.00015454,2]
[408525014,1773823833760,-160.81,0.00015493,2]
[408525015,1773823833770,-500.0,0.00015509,2]
[408525016,1773823833781,-290.0,0.00015544,2]
[408525017,1773823833792,-500.0,0.00015549,2]
[408525018,1773823833802,-500.0,0.00015549,2]
[408525019,1773823833813,-500.0,0.00015549,2]
[408525020,1773823833824,-500.0,0.00015549,2]
[408525021,1773823833837,-500.0,0.00015549,2]
[408525022,1773823833847,-500.0,0.00015549,2]
[408525023,1773823833856,-500.0,0.00015549,2]
[408525024,1773823833866,-500.0,0.00015549,2]
[408525025,1773823833876,-500.0,0.00015549,2]
[408525026,1773823833886,-322.75686492,0.00015549,2]
[408525027,1773823833896,-500.0,0.00015564,2]
[408525028,1773823833905,-350.0,0.00015581,2]
[408525029,1773823833915,-196.0,0.00015605,2]
[408525030,1773823833926,-196.0,0.00015615,2]
[408525031,1773823833936,-200.0,0.00015617,2]
[408525032,1773823834213,-181.08010149,0.00015617,2]
[408525033,1773823834223,-674.2197224,0.00015617,2]
[408525034,1773823834232,-500.0,0.00015617,2]
[408525035,1773823834242,-500.0,0.00015619,2]
[408525036,1773823834251,-538.04003596,0.00015633,2]
[408525037,1773823834260,-500.0,0.00015674,2]
[408525038,1773823834269,-166.66,0.00015685,2]
[408525039,1773823834279,-290.0,0.00015803,2]
[408525040,1773823834289,-1000.0,0.00015836,2]
[408525041,1773823834298,-1000.0,0.00015836,2]
[408525042,1773823834308,-1000.0,0.00015836,2]
[408525043,1773823834318,-1000.0,0.00015836,2]
[408525044,1773823834337,-1000.0,0.00015836,2]
[408525045,1773823834350,-350.798,0.00015836,2]
[408525046,1773823834364,-500.0,0.00015891,2]
[408525047,1773823834373,-2500.0,0.00015897,2]
[408525048,1773823834382,-513.47,0.00015935,2]
[408525049,1773823834393,-200.0,0.00015971,2]
[408525050,1773823834402,-5595.55,0.00015987,2]
[408525051,1773823834412,-371.2713,0.0001599,2]
[408525052,1773823834422,-166.66,0.00015996,2]
[408525053,1773823834431,-500.0,0.00015996,2]
[408525054,1773823834440,-500.0,0.00015996,2]
[408525055,1773823834450,-500.0,0.00015996,2]
[408525056,1773823834464,-500.0,0.00015996,2]
[408525057,1773823834480,-148782.7016,0.00015997,2]
[408525058,1773823834492,-310.54751259,0.00016,2]
[408525059,1773823834503,-10000.0,0.00016052,2]
[408525060,1773823834515,-285.974567,0.00016072,7]
[408525061,1773823834526,-160.0,0.00016072,7]
[408525062,1773823834536,-197.588505,0.00016072,7]
[408525063,1773823834546,-235.17701,0.00016072,7]
[408525064,1773823834556,-1180.0439536,0.00016087,2]
[408525065,1773823834566,-3490.0070217,0.00016087,2]
[408525066,1773823834575,-3053.5169617,0.00016087,2]
[408525067,1773823834585,-38185.7269605,0.00016087,2]
[408525068,1773823834595,-5575.3829448,0.00016087,2]
[408525069,1773823834604,-458.49,0.0001609,2]
[408525070,1773823834614,-260.784239,0.00016091,7]
[408525071,1773823834623,-581.52163243,0.00016096,2]
[408525072,1773823834633,-500.0,0.00016096,2]
[408525073,1773823834644,-500.0,0.00016096,2]
[408525074,1773823834655,-500.0,0.00016096,2]
[408525075,1773823834665,-500.0,0.00016096,2]
[408525076,1773823834675,-500.0,0.00016096,2]
[408525077,1773823834684,-500.0,0.00016096,2]
[408525078,1773823834694,-471.63043267,0.00016096,2]
[408525079,1773823834704,-500.0,0.00016096,2]
[408525080,1773823834714,-500.0,0.00016096,2]
[408525081,1773823834723,-500.0,0.00016096,2]
[408525082,1773823834734,-500.0,0.00016096,2]
[408525083,1773823834744,-500.0,0.00016096,2]
[408525084,1773823834754,-499.99999999,0.00016096,2]
[408525085,1773823834764,-621.696,0.00016097,2]
[408525086,1773823834773,-3512.0,0.00016097,2]
[408525087,1773823834783,-1052.763,0.00016097,2]
[408525088,1773823834792,-1344.0,0.00016097,2]
[408525089,1773823834802,-1260.0,0.00016097,2]
[408525090,1773823834812,-414.915,0.00016097,2]
[408525091,1773823834821,-3757.0,0.00016097,2]
[408525092,1773823834831,-141049.46413792,0.000161,2]
[408525093,1773823838090,-2032.0,0.00016,2]
[408525094,1773823838100,-135650.23029492,0.000161,2]
[408525095,1773823838143,-145691.83015871,0.000161,2]
[408525110,1773823840403,-1902.05591406,0.000159,2]
[408525111,1773823840457,-1982.76593172,0.000159,2]
[408525114,1773823843137,-79.49150529,0.000159,2]
[408525115,1773823843146,-246.08864902,0.00016097,2]
[408525116,1773823843191,-946.39436507,0.00016097,2]
[408525117,1773823843202,-1071.18168082,0.00016097,2]
[408525118,1773823843214,-201.33530509,0.00016097,2]
[408525119,1773823843223,-38797.23969088,0.000161,2]
[408525120,1773823843298,-638.07723091,0.000161,2]
[408525124,1773823846018,-13371.4208097,0.000161,2]
[408525136,1773824296018,-300.0,0.00013587,2]
[408525137,1773824296059,-9400.01,0.00013588,2]
[408525138,1773824296214,-10000.01,0.00013588,2]
[408525139,1773824296338,-10000.01,0.00013588,2]
[408525140,1773824297451,-10000.01,0.00013588,2]
[408525141,1773824297792,-10000.01,0.00013588,2]
[408525142,1773824298934,-10000.01,0.00013588,2]
[408525143,1773824299051,-3963.4914,0.00013588,2]
[408525144,1773824299077,-2073.0272,0.00013588,2]
[408525145,1773824299154,-420.0,0.00014891,2]
[408525146,1773824299182,-4160.01,0.00014946,2]
[408525147,1773824299222,-839.99,0.00014946,2]
[408525148,1773824299273,-296.19696011,0.00014946,2]
[408525149,1773824299301,-195.0,0.00014947,2]
[408525150,1773824299328,-1852.42,0.00015125,2]
[408525151,1773824299355,-747.48,0.00015284,2]
[408525152,1773824299384,-214.0,0.00015458,2]
[408525153,1773824299412,-214.0,0.00015511,2]
[408525154,1773824299439,-166.66,0.00015515,2]
[408525155,1773824299466,-214.0,0.0001558,2]
[408525156,1773824299493,-214.0,0.00015658,2]
[408525157,1773824299520,-214.0,0.0001578,2]
[408525158,1773824299547,-150.0,0.00015821,2]
[408525159,1773824299576,-293.4640706,0.00015821,2]
[408525160,1773824299612,-214.0,0.00015894,2]
[408525161,1773824299717,-1000.0,0.00015897,2]
[408525162,1773824299743,-2500.0,0.00015897,2]
[408525163,1773824299770,-1000.0,0.000159,3]
[408525164,1773824299796,-0.01,0.0001599,3]
[408525165,1773824300027,-29.55793858,0.0001599,3]
[408525166,1773824300046,-970.43206142,0.0001599,3]
[408525167,1773824300065,-29.56793858,0.00015996,2]
[408525168,1773824302020,-470.43206142,0.00015996,2]
[408525169,1773824302047,-500.0,0.00015996,2]
[408525170,1773824302074,-500.0,0.00015996,2]
[408525171,1773824302103,-214.0,0.00015998,2]
[408525172,1773824302132,-2000.0,0.00016,2]
[408525173,1773824302158,-481.0,0.00016018,2]
[408525174,1773824302184,-747.48,0.00016048,2]
[408525175,1773824302228,-5000.0,0.00016052,2]
[408525176,1773824302372,-174.18587716,0.00016052,2]
[408525177,1773824302386,-0.01,0.00016052,2]
[408525184,1773824556911,5000.01,9.5e-05,3]
[408525185,1773824556932,5000.01,9.5e-05,3]
[408525186,1773824556953,5000.01,9.5e-05,3]
[408525187,1773824556973,5000.01,9.5e-05,3]
[408525188,1773824556994,5000.01,9.5e-05,3]
[408525189,1773824557018,10000.01,9.5e-05,3]
[408525190,1773824557038,10000.01,9.5e-05,3]
[408525191,1773824557059,10000.01,9.5e-05,3]
[408525192,1773824557080,10000.01,9.5e-05,3]
[408525193,1773824557100,10000.01,9.5e-05,3]
[408525194,1773824557122,10000.01,9.5e-05,3]
[408525195,1773824557143,10000.01,9.5e-05,3]
[408525196,1773824557163,10000.01,9.5e-05,3]
[408525197,1773824557187,286008.54980235,9.5e-05,3]
[408525198,1773824557214,314243.12916795,9.5e-05,3]
[408525199,1773824668991,-1200.0,0.00011989,2]
[408525200,1773824669017,-150.0,0.00011989,2]
[408525201,1773824701164,1200.0,0.00011989,2]
[408525202,1773824749785,512.0,0.00030137,120]
[408525203,1773824750214,500.0,0.0003013,120]
[408525204,1773824834216,2200.0,0.00030137,120]
[408525205,1773824851728,1000.0,0.0003013,120]
[408525206,1773824952129,-5334.63944497,0.0001199,2]
[408525207,1773824972011,330.0833987,0.00011978,2]
[408525208,1773825001143,300.69,0.00030137,120]
[408525209,1773825001419,892.0,0.00011989,2]
[408525216,1773825032224,-510.0,0.0001199,2]
[408525219,1773825032276,-756.18617286,0.0001199,2]
[408525220,1773825032332,-9788.81236818,0.0001199,2]
[408525221,1773825032343,-38587.42950753,0.0001199,2]
[408525222,1773825032353,-2596.0,0.0001199,2]
[408525223,1773825032386,-1610.89109739,0.0001199,2]
[408525224,1773825032396,-1419.65435829,0.0001199,2]
[408525225,1773825032444,-593.61222,0.0001199,2]
[408525226,1773825032455,-3134.79972123,0.0001199,2]
[408525227,1773825032465,-499.50294632,0.0001199,2]
[408525229,1773825038200,-7309.1,0.0001199,2]
[408525230,1773825038211,-22192.09036984,0.0001199,2]
[408525231,1773825038220,-150.0,0.00012547,2]
[408525232,1773825038229,-358.46,0.000126,2]
[408525233,1773825038238,-359.80388147,0.00013371,2]
[408525234,1773825038259,-502.0,0.00014192,2]
[408525235,1773825038268,-1521.6180611,0.0001476,2]
[408525236,1773825038278,-12104.8860542,0.00014868,2]
[408525237,1773825038287,-8187.1330966,0.00014868,2]
[408525238,1773825038296,-200.0,0.00014878,2]
[408525239,1773825038306,-27213.6537203,0.00014897,2]
[408525240,1773825038316,-250.0,0.00015,2]
[408525241,1773825038325,-134.56518188,0.00015078,2]
[408525242,1773825038338,-65.43481812,0.00015078,2]
[408525243,1773825038347,-474.57738234,0.00015216,2]
[408525244,1773825038359,-1086.4395005,0.00015216,2]
[408525245,1773825038374,-2006.86513315,0.00015216,2]
[408525246,1773825038384,-500.0,0.0001526,2]
[408525247,1773825038394,-500.0,0.0001526,2]
[408525248,1773825038403,-8280.63662935,0.0001526,2]
[408525249,1773825038415,-602.05188545,0.0001526,2]
[408525250,1773825038425,-500.0,0.0001526,2]
[408525252,1773825038440,-578.71777964,0.0001526,2]
[408525254,1773825038450,-151.0,0.0001526,2]
[408525256,1773825038460,-500.0,0.0001526,2]
[408525258,1773825038469,-500.0,0.0001526,2]
[408525260,1773825038478,-500.0,0.0001526,2]
[408525262,1773825038487,-500.0,0.0001526,2]
[408525264,1773825038497,-218.24018193,0.0001526,2]
[408525266,1773825038506,-1321.66331427,0.00015278,2]
[408525268,1773825038515,-836.34,0.00015282,2]
[408525270,1773825038525,-200.58610052,0.00015315,2]
[408525271,1773825038534,-220.27721905,0.00015415,2]
[408525272,1773825038543,-3567.88201592,0.00015514,2]
[408525273,1773825038552,-316.0,0.00015528,2]
[408525274,1773825038561,-220.27721905,0.00015568,2]
[408525275,1773825038571,-168.0,0.00015614,2]
[408525276,1773825038580,-414.0,0.00015686,2]
[408525277,1773825038589,-3757.0,0.00015686,2]
[408525278,1773825038599,-220.27721905,0.00015721,2]
[408525279,1773825038613,-3567.88201592,0.00015812,2]
[408525280,1773825038622,-300.0,0.00015874,2]
[408525281,1773825038632,-150.0,0.00015874,30]
[408525282,1773825038641,-2000.0,0.0001589,2]
[408525283,1773825038650,-2000.0,0.000159,2]
[408525284,1773825038660,-172.086,0.00015953,2]
[408525285,1773825038670,-3418.565,0.00015955,2]
[408525286,1773825038684,-14563.96615335,0.00016,4]
[408525287,1773825038693,-2500.0,0.00016,2]
[408525288,1773825038702,-628.3172,0.00016042,2]
[408525289,1773825038712,-151.0,0.00016052,2]
[408525290,1773825038721,-9825.80412284,0.00016052,2]
[408525291,1773825038730,-5595.55,0.00016089,2]
[408525292,1773825038739,-481.0,0.00016089,2]
[408525293,1773825038748,-167.66,0.0001609,2]
[408525294,1773825038757,-150.0,0.00016097,2]
[408525295,1773825038766,-184.459,0.00016097,2]
[408525296,1773825038775,-271.0,0.00016097,2]
[408525297,1773825038784,-1344.0,0.00016097,2]
[408525298,1773825038794,-3512.0,0.00016097,2]
[408525299,1773825038803,-620.0,0.00016097,2]
[408525300,1773825038817,-1260.0,0.00016097,2]
[408525301,1773825038826,-500.0,0.00016097,2]
[408525302,1773825038836,-500.0,0.00016097,2]
[408525303,1773825038844,-500.0,0.00016097,2]
[408525304,1773825038855,-504.32218719,0.00016097,2]
[408525305,1773825038864,-150.0,0.00016097,2]
[408525306,1773825038873,-500.0,0.00016097,2]
[408525307,1773825038885,-152.85404086,0.00016097,2]
[408525308,1773825038894,-500.0,0.00016097,2]
[408525309,1773825038903,-434.47795526,0.00016097,2]
[408525310,1773825038912,-150.0,0.00016097,2]
[408525311,1773825038921,-150.0,0.00016097,2]
[408525312,1773825038931,-150.0,0.00016097,2]
[408525313,1773825038940,-158.80130543,0.00016097,2]
[408525314,1773825038949,-155.62552517,0.00016097,2]
[408525315,1773825038958,-500.0,0.00016097,2]
[408525316,1773825038967,-500.0,0.00016097,2]
[408525317,1773825038981,-500.0,0.00016097,2]
[408525318,1773825038990,-150.0,0.00016097,2]
[408525319,1773825038999,-295.39810934,0.00016097,2]
[408525320,1773825039009,-1189.41744757,0.00016098,2]
[408525321,1773825039019,-500.0,0.00016099,2]
[408525322,1773825039027,-564.72132848,0.00016099,2]
[408525323,1773825039037,-265.54691525,0.00016099,2]
[408525324,1773825039046,-564.72132848,0.00016099,2]
[408525325,1773825039055,-500.0,0.00016099,2]
[408525326,1773825039064,-500.0,0.00016099,2]
[408525327,1773825039073,-500.0,0.00016099,2]
[408525328,1773825039083,-500.0,0.00016099,2]
[408525329,1773825039092,-500.0,0.00016099,2]
[408525330,1773825039102,-564.72132848,0.00016099,2]
[408525331,1773825039111,-500.0,0.00016099,2]
[408525332,1773825039121,-500.0,0.00016099,2]
[408525333,1773825039130,-179.43154913,0.00016099,2]
[408525334,1773825039140,-564.72132848,0.00016099,2]
[408525335,1773825039150,-500.0,0.00016099,2]
[408525336,1773825039159,-243.14954281,0.00016099,2]
[408525337,1773825039172,-500.0,0.00016099,2]
[408525338,1773825039181,-500.0,0.00016099,2]
[408525339,1773825039191,-197.56454924,0.00016099,2]
[408525340,1773825039200,-500.0,0.00016099,2]
[408525341,1773825039209,-564.72132848,0.00016099,2]
[408525342,1773825039219,-564.72132848,0.00016099,2]
[408525343,1773825039228,-500.0,0.00016099,2]
[408525344,1773825039237,-564.72132848,0.00016099,2]
[408525345,1773825039247,-500.0,0.00016099,2]
[408525346,1773825039256,-500.0,0.00016099,2]
[408525347,1773825039266,-564.72132848,0.00016099,2]
[408525348,1773825039275,-630.63390706,0.00016099,2]
[408525349,1773825039284,-481.40996876,0.00016099,2]
[408525350,1773825039294,-564.72132848,0.00016099,2]
[408525351,1773825039303,-500.0,0.00016099,2]
[408525352,1773825039312,-500.0,0.00016099,2]
[408525353,1773825039322,-564.72132848,0.00016099,2]
[408525354,1773825039332,-500.0,0.00016099,2]
[408525355,1773825039342,-564.72132848,0.00016099,2]
[408525356,1773825039351,-564.72132848,0.00016099,2]
[408525357,1773825039364,-564.72132848,0.00016099,2]
[408525358,1773825039374,-564.72132848,0.00016099,2]
[408525359,1773825039384,-564.72132848,0.00016099,2]
[408525360,1773825039394,-564.72132848,0.00016099,2]
[408525361,1773825039404,-500.0,0.00016099,2]
[408525362,1773825039414,-564.72132848,0.00016099,2]
[408525363,1773825039424,-500.0,0.00016099,2]
[408525364,1773825039434,-564.72132848,0.00016099,2]
[408525365,1773825039443,-500.0,0.00016099,2]
[408525366,1773825039453,-564.72132848,0.00016099,2]
[408525367,1773825039463,-500.0,0.00016099,2]
[408525368,1773825039474,-564.72132848,0.00016099,2]
[408525369,1773825039484,-500.0,0.00016099,2]
[408525370,1773825039494,-564.72132848,0.00016099,2]
[408525371,1773825039504,-500.0,0.00016099,2]
[408525372,1773825039513,-564.72132848,0.00016099,2]
[408525373,1773825039523,-564.72132848,0.00016099,2]
[408525374,1773825039534,-564.72132848,0.00016099,2]
[408525375,1773825039544,-564.72132848,0.00016099,2]
[408525376,1773825039553,-564.72132848,0.00016099,2]
[408525377,1773825039563,-564.72132848,0.00016099,2]
[408525378,1773825039576,-564.72132848,0.00016099,2]
[408525379,1773825039586,-564.72132848,0.00016099,2]
[408525380,1773825039596,-564.72132848,0.00016099,2]
[408525381,1773825039606,-564.72132848,0.00016099,2]
[408525382,1773825039615,-564.72132848,0.00016099,2]
[408525383,1773825039624,-564.72132848,0.00016099,2]
[408525384,1773825039634,-564.72132848,0.00016099,2]
[408525385,1773825039643,-564.72132848,0.00016099,2]
[408525386,1773825039653,-564.72132848,0.00016099,2]
[408525387,1773825039663,-564.72132848,0.00016099,2]
[408525388,1773825039682,-564.72132848,0.00016099,2]
[408525389,1773825039692,-564.72132848,0.00016099,2]
[408525390,1773825039701,-564.72132848,0.00016099,2]
[408525391,1773825039711,-564.72132848,0.00016099,2]
[408525392,1773825039956,-564.72132848,0.00016099,2]
[408525393,1773825039966,-564.72132848,0.00016099,2]
[408525394,1773825039976,-564.72132848,0.00016099,2]
[408525395,1773825039985,-564.72132848,0.00016099,2]
[408525396,1773825039993,-564.72132848,0.00016099,2]
[408525397,1773825040005,-564.72132848,0.00016099,2]
[408525398,1773825040014,-564.72132848,0.00016099,2]
[408525399,1773825040023,-564.72132848,0.00016099,2]
[408525400,1773825040032,-564.72132848,0.00016099,2]
[408525401,1773825040042,-564.72132848,0.00016099,2]
[408525402,1773825040051,-564.72132848,0.00016099,2]
[408525403,1773825040061,-564.72132848,0.00016099,2]
[408525404,1773825040079,-564.72132848,0.00016099,2]
[408525405,1773825040090,-564.72132848,0.00016099,2]
[408525406,1773825040100,-564.72132848,0.00016099,2]
[408525407,1773825040109,-564.72132848,0.00016099,2]
[408525408,1773825040119,-564.72132848,0.00016099,2]
[408525409,1773825040129,-564.72132848,0.00016099,2]
[408525410,1773825040139,-564.72132848,0.00016099,2]
[408525411,1773825040148,-562.70446658,0.00016099,2]
[408525412,1773825040159,-562.70446658,0.00016099,2]
[408525413,1773825040170,-562.70446658,0.00016099,2]
[408525414,1773825040179,-562.70446658,0.00016099,2]
[408525415,1773825040189,-562.70446658,0.00016099,2]
[408525416,1773825040199,-562.70446658,0.00016099,2]
[408525417,1773825040208,-562.70446658,0.00016099,2]
[408525418,1773825040218,-562.70446658,0.00016099,2]
[408525419,1773825040227,-562.70446658,0.00016099,2]
[408525420,1773825040237,-562.70446658,0.00016099,2]
[408525421,1773825040247,-562.70446658,0.00016099,2]
[408525422,1773825040256,-562.70446658,0.00016099,2]
[408525423,1773825040266,-562.70446658,0.00016099,2]
[408525424,1773825040277,-562.70446658,0.00016099,2]
[408525425,1773825040286,-562.70446658,0.00016099,2]
[408525426,1773825040295,-562.70446658,0.00016099,2]
[408525427,1773825040305,-562.70446658,0.00016099,2]
[408525428,1773825040315,-562.70446658,0.00016099,2]
[408525429,1773825040324,-562.70446658,0.00016099,2]
[408525430,1773825040333,-562.70446658,0.00016099,2]
[408525431,1773825040343,-562.70446658,0.00016099,2]
[408525432,1773825040353,-562.70446658,0.00016099,2]
[408525433,1773825040362,-562.70446658,0.00016099,2]
[408525434,1773825040372,-562.70446658,0.00016099,2]
[408525435,1773825040381,-562.70446658,0.00016099,2]
[408525436,1773825040390,-562.70446658,0.00016099,2]
[408525437,1773825040400,-562.70446658,0.00016099,2]
[408525438,1773825040409,-562.70446668,0.00016099,2]
[408525439,1773825040419,-168669.7123282,0.000161,2]
[408525440,1773825040434,-750.97674804,0.000161,2]
[408525441,1773825040457,-328460.09172307,0.000161,2]
[408525442,1773825040476,-17403.92859062,0.000161,2]
[408525443,1773825040837,-151.0,0.00016099,2]
[408525444,1773825040846,-83909.99304947,0.000161,2]
[408525446,1773825040864,-506.93,0.000161,2]
[408525448,1773825040875,-3620.26101886,0.000161,2]
[408525453,1773825040923,-4913.35357007,0.000161,2]
[408525461,1773825043226,-1521.06020001,0.00016097,2]
[408525462,1773825043238,-943.93979999,0.00016097,2]
[408525463,1773825043247,-456.73209105,0.000161,2]
[408525464,1773825043387,-49315.56336292,0.000161,2]
[408525465,1773825043442,-624.68867735,0.000161,2]
[408525592,1773825046193,-1826.80243167,0.00016,2]
[408525593,1773825046212,-752.03320194,0.00016,2]
[408525594,1773825046223,-504.28557616,0.00016,2]
[408525595,1773825046234,-2406.26559062,0.00016,2]
[408525596,1773825046243,-18869.25798766,0.000161,2]
[408525597,1773825046390,-8817.56451605,0.000161,2]
[408525598,1773825046446,-1792.78315833,0.000161,2]
[408525599,1773825046458,-362.84828034,0.000161,2]
[408525600,1773825046470,-1141.6,0.000161,2]
[408525601,1773825046481,-1186.18099242,0.000161,2]
[408525605,1773825603208,191.83717229,0.00030137,120]
[408525607,1773825663288,2426.0,0.00030136,120]
[408525608,1773825886490,2250.46681,0.0003,120]
[408525609,1773825913643,1069.0,0.00030137,120]
[408525610,1773825927659,2137.943469,0.0003,120]
[408525611,1773825989224,2137.943469,0.0003,120]
[408525612,1773825996620,2137.943476,0.0003,120]
[408525613,1773826003282,2137.943469,0.0003,120]
[408525614,1773826013846,2137.943469,0.0003,120]
[408525615,1773826029527,2137.943469,0.0003,120]
[408525616,1773826038091,2137.943469,0.0003,120]
[408525617,1773826046804,2137.943469,0.0003,120]
[408525618,1773826053276,2137.943469,0.0003,120]
[408525619,1773826088430,2137.943469,0.0003,120]
[408525620,1773826098323,2137.943469,0.0003,120]
[408525621,1773826109860,2137.943469,0.0003,120]
[408525622,1773826146153,2137.943469,0.0003,120]
[408525623,1773826175180,1261.36,0.0003,120]
[408525624,1773826220170,748.280217,0.0003,120]
[408525625,1773826226965,748.280214,0.0003,120]
[408525630,1773826231365,-403.28222139,0.00012352,2]
[408525631,1773826231420,-867.61452967,0.00012352,2]
[408525632,1773826231431,-800.00324894,0.00012352,2]
[408525633,1773826231441,-150.0,0.00013699,2]
[408525634,1773826231451,-150.0,0.00013746,2]
[408525635,1773826231461,-150.0,0.0001402,2]
[408525636,1773826231470,-150.0,0.00014294,2]
[408525637,1773826231480,-150.0,0.00014294,14]
[408525638,1773826231488,-166.66,0.00014322,2]
[408525639,1773826231498,-4779.00633629,0.0001455,2]
[408525640,1773826231519,-301.93027671,0.0001455,2]
[408525641,1773826231528,-166.66,0.00014623,2]
[408525642,1773826231539,-3240.0,0.00014782,2]
[408525643,1773826231549,-1999.36,0.00014792,2]
[408525644,1773826231558,-166.66,0.00014925,2]
[408525645,1773826231567,-160.81,0.0001507,2]
[408525646,1773826231576,-166.66,0.00015226,2]
[408525647,1773826231591,-8882.6885148,0.00015285,2]